Cogmind - Beta 16 @@@ ROGUE MODE // 2026.01.24 @ 23:20:45 Player: AngelSpirit Result: Destroyed by P-60 Hacker with Shock Rifle Performance ------------- Evolutions (2) 1000 Regions Visited (10) 2000 Robots Destroyed (190) 950 Value Destroyed (6880) 6880 Prototype IDs (21) 420 Alien Tech Used (0) 0 Bonus (3516) 3516 TOTAL SCORE: 14766 Bonus ------- High Alert Combat Kills 1000 Follower Combat Kills 116 Entered Garrisons 600 Used RIF Installer 1500 Aligned with FarCom 300 Cogmind --------- Core Integrity 0/550 Matter 290/300 Energy 151/160 System Corruption 37% Temperature Hot (200) Movement Rolling (115) Ox2 Location -8/Garrison Parts ------- > --- POWER (1) -------- Light Nuclear Core > --- PROPULSION (3) --- Wheel Armored Huge Wheel > --- UTILITY (4) ------ Huge Storage Unit Improved Medium Armor Plating Improved Medium Armor Plating Relay Coupler [Swarmer] (25) > --- WEAPON (3) ------- Beam Rifle Particle Gun Remote Datajack > --- INVENTORY (25) --- Wheel Gravmag System Gravmag System Gravmag System Gravmag System Combat Airjet Combat Airjet Advanced Heat Sink Medium Storage Unit Energy Well (350) Medium Reactive Plating Medium Reactive Plating Hacking Suite Hacking Suite Relay Coupler [NC] (31) Relay Coupler [Sentry] (32) Latent Energy Streamer Advanced EMP Blaster Advanced EMP Blaster Advanced EMP Blaster Advanced EMP Blaster Advanced EMP Blaster Advanced EMP Blaster Peak State ------------ > --- POWER ------------ Improved Deuterium Engine > --- PROPULSION ------- Gravmag System Combat Airjet Combat Airjet > --- UTILITY ---------- Advanced Heat Sink Huge Storage Unit Improved Medium Armor Plating Improved Medium Armor Plating > --- WEAPON ----------- Shock Rifle Shock Rifle Advanced EMP Blaster > --- INVENTORY -------- Micro Nuclear Core Gravmag System Gravmag System Gravmag System Medium Storage Unit Energy Well Improved Medium Armor Plating Improved Medium Armor Plating Improved Medium Armor Plating Hacking Suite Hacking Suite Relay Coupler [Grunt] Relay Coupler [Hunter] Proton Cannon Latent Energy Streamer Advanced EMP Blaster Advanced EMP Blaster Advanced EMP Blaster Advanced EMP Blaster Advanced EMP Blaster Remote Datajack [Rating: 50] Favorites ----------- Power Improved Ion Engine Engine Improved Ion Engine Power Core Light Nuclear Core Propulsion Wheel Wheel Wheel Hover Unit Combat Airjet Utility Huge Storage Unit Device Seismic Detector Storage Huge Storage Unit Hackware Hacking Suite Protection Hardened Light Armor Plating Weapon Autogun Energy Gun Shock Rifle Energy Cannon Proton Cannon Ballistic Gun Autogun Ballistic Cannon Improved Light Cannon Launcher Mini Grenade Launcher Special Weapon Remote Datajack Special Melee Weapon Datajack Build | -11 -10 -10 -10 -9 -8 -8 -8 -8 -8 -8 ------- Run | Yrd Mat Min Exi Min Mat Gar Mat Gar Mat Gar Slots Evolved 4 | . . . . . 4 . . . . . Power . | . . . . . . . . . . . Propulsion 1 | . . . . . 1 . . . . . Utility 2 | . . . . . 2 . . . . . Weapon 1 | . . . . . 1 . . . . . Parts Attached 107 | 7 11 2 6 4 23 10 11 21 4 8 Power 12 | 1 2 . . . 2 2 1 4 . . Engine 9 | 1 2 . . . 2 2 1 1 . . Core 3 | . . . . . . . . 3 . . Reactor . | . . . . . . . . . . . Propulsion 22 | 2 2 . 2 . 3 4 3 5 1 . Treads . | . . . . . . . . . . . Leg . | . . . . . . . . . . . Wheel 19 | 2 2 . 2 . 3 4 3 2 1 . Hover 3 | . . . . . . . . 3 . . Flight . | . . . . . . . . . . . Utility 34 | 2 3 1 1 2 7 1 4 7 3 3 Device 3 | 1 . . . . 1 . . 1 . . Storage 7 | 1 3 . 1 . 1 . . 1 . . Processor . | . . . . . . . . . . . Hackware 4 | . . . . . . 1 . . 1 2 Protection 20 | . . 1 . 2 5 . 4 5 2 1 Artifact . | . . . . . . . . . . . Weapon 39 | 2 4 1 3 2 11 3 3 5 . 5 Energy Gun 10 | . . . . . 3 . . 3 . 4 Energy Cannon 3 | . . . 2 . . . . . . 1 Ballistic Gun 17 | 2 4 . . 2 4 2 3 . . . Ballistic Cannon 2 | . . . . . 2 . . . . . Launcher 5 | . . 1 . . 2 1 . 1 . . Special Weapon 1 | . . . . . . . . 1 . . Impact Weapon . | . . . . . . . . . . . Slashing Weapon . | . . . . . . . . . . . Piercing Weapon . | . . . . . . . . . . . Special Melee Weapon 1 | . . . 1 . . . . . . . Unidentified Prototypes 9 | . . . 3 . 5 . 1 . . . Corrupted Parts 2 | . . . . . . . . 1 . 1 System Corruption 13 | . . . . . . . . 12 . 1 Parts Lost 24 | . 1 . . 4 5 2 2 9 . 1 Power 2 | . . . . . 1 . . 1 . . Propulsion 8 | . 1 . . . 2 1 2 2 . . Utility 6 | . . . . 2 1 . . 2 . 1 Weapon 8 | . . . . 2 1 1 . 4 . . Highest Loss Streak 4 | . 1 . . 4 2 1 1 2 . 1 To Critical Strikes . | . . . . . . . . . . . Average Backups 20 | 1 12 20 17 15 19 21 23 22 24 24 Power 1 | . . 2 2 2 2 1 2 1 1 . Propulsion 5 | . 3 4 2 2 6 4 5 5 6 7 Utility 6 | . 4 9 7 5 4 6 5 6 9 9 Weapon 7 | . 3 4 5 4 6 9 9 7 7 7 Tool/Special . | . . . . . . . . . . . Unused Backups 40 | . 3 . 3 . 5 5 4 4 1 15 Power 2 | . . . . . 1 1 . . . . Propulsion 10 | . . . . . 3 1 . 3 . 3 Utility 18 | . . . 3 . . 2 3 1 1 8 Weapon 10 | . 3 . . . 1 1 1 . . 4 Tool/Special . | . . . . . . . . . . . Average Slot Usage (%) 91 | . 99 100 83 100 95 96 88 83 90 89 Engine 9 | . 14 14 14 14 8 9 9 6 9 6 Wheel 22 | . 28 28 28 28 26 25 17 14 18 18 Device 5 | . 14 12 8 10 3 . . 5 9 7 Storage 10 | . 14 14 14 14 9 9 9 10 9 9 Hackware 3 | . . . . . . 8 9 3 . 1 Protection 13 | . . 1 . 3 19 18 17 15 17 17 Energy Gun 3 | . . . . . . . . 9 18 17 Ballistic Gun 18 | . 27 27 12 28 18 24 26 10 . . Special Weapon 1 | . . . . . . . . 2 8 6 Peak Build Rating 50 | 7 12 12 28 13 30 40 44 50 46 47 Average Rating 29 | 5 9 12 10 12 24 31 41 39 45 44 On Entrance 23 | . 7 12 12 13 13 30 40 43 44 46 Avg Prop Armor Cover (%) . | . . . . . . . . . . . Naked Turns . | . . . . . . . . . . . Heaviest Build 130 | 12 54 54 54 56 112 111 117 120 130 127 Greatest Support 44 | 26 26 26 26 26 36 38 44 40 38 38 Greatest Overweight (x) 11 | . 2 2 2 2 3 5 4 11 3 3 Average Overweight (x) 2 | . . 2 1 2 2 2 2 2 2 2 Largest Inventory Capacity 25 | 8 20 20 20 20 25 25 25 25 25 25 Average Capacity 22 | 7 17 20 20 20 22 25 25 23 25 25 Most Carried 25 | 3 20 20 20 16 25 25 25 25 25 25 Average Carried 21 | 1 12 20 17 15 19 23 24 23 24 24 Final Capacity 25 | 8 20 20 20 20 25 25 25 25 25 25 Final Carried 25 | 3 20 20 16 15 25 25 25 25 25 23 Class Distribution -------------------- 52% | Scavenger-Tank 30% | Mutant 6% | Tank 5% | Scavenger-Mutant 4% | Scavenger-Skirmisher Dominant Class ---------------- Mutant | -10/Materials Mutant | -10/Mines Mutant | -10/Exiles Mutant | -9/Mines Scavenger-Tank | -8/Materials Scavenger-Tank | -8/Garrison Scavenger-Tank | -8/Materials Scavenger-Tank | -8/Garrison Scavenger-Tank | -8/Materials Scavenger-Tank | -8/Garrison Resources | -11 -10 -10 -10 -9 -8 -8 -8 -8 -8 -8 ----------- Run | Yrd Mat Min Exi Min Mat Gar Mat Gar Mat Gar Matter Collected 6521 | 274 351 138 174 93 1260 1365 1529 938 183 216 Remotely . | . . . . . . . . . . . Salvage Created 7253 | 18 485 173 . 126 1267 1051 1607 1394 567 565 Parts 404 | 3 27 18 . 6 89 50 97 64 27 23 Haulers Intercepted 10 | . 2 . . . 3 . 4 . 1 . Recyclers Shooed 1 | . . . . . 1 . . . . . Parts Field Recycled . | . . . . . . . . . . . Retrieved Matter . | . . . . . . . . . . . Parts Self-Destructed . | . . . . . . . . . . . Prevented . | . . . . . . . . . . . Parts Restored . | . . . . . . . . . . . Kills | -11 -10 -10 -10 -9 -8 -8 -8 -8 -8 -8 ------- Run | Yrd Mat Min Exi Min Mat Gar Mat Gar Mat Gar Combat Hostiles Destroyed 138 | . 8 9 . 2 30 18 22 31 7 11 Guns 90 | . 8 3 . 2 21 10 18 17 3 8 Cannons 4 | . . . . . 4 . . . . . AOE 41 | . . 6 . . 5 8 4 14 3 1 Classes Destroyed 16 | 1 6 1 . 2 3 2 1 . . . Worker 4 | . . . . . 1 . 2 . 1 . Builder 5 | . 1 . . . 2 . 1 . 1 . Tunneler 1 | 1 . . . . . . . . . . Hauler 10 | . 2 . . . 3 . 4 . 1 . Recycler 6 | . . . . 1 1 . 3 . 1 . Mechanic 1 | . . 1 . . . . . . . . Operator 10 | . 2 . . . 4 . 3 . 1 . Watcher 14 | . 2 . . . 2 1 5 1 3 . Swarmer 44 | . 2 6 . . 13 9 5 7 2 . Cutter 4 | . . . . . . 2 . 2 . . Grunt 50 | . 6 3 . . 12 . 8 13 4 4 Duelist 1 | . . . . . . . 1 . . . Sentry 17 | . . . . . 4 3 7 1 1 1 Demolisher 2 | . . . . 2 . . . . . . Hunter 6 | . . . . . 1 1 1 3 . . Programmer 15 | . . . . . . 3 . 5 . 7 Best Kill Streak 8 | 1 4 4 . 3 8 3 5 5 4 3 Combat Bots Only 7 | . 2 3 . 2 7 3 5 5 3 3 Max Kills in Single Turn 4 | 1 1 2 . 1 4 2 2 3 2 2 Gunslinging 1 | . . . . . 1 . . . . . Exploded 3 | . . 2 . . 3 2 2 3 2 1 Melee . | . . . . . . . . . . . Uniques/NPCs Destroyed . | . . . . . . . . . . . Combat | -11 -10 -10 -10 -9 -8 -8 -8 -8 -8 -8 -------- Run | Yrd Mat Min Exi Min Mat Gar Mat Gar Mat Gar Hostile Shots Fired 613 | . 38 23 . 17 113 71 89 163 17 82 Missed 174 | . 7 8 . 3 35 24 31 38 4 24 Hits 439 | . 31 15 . 14 78 47 58 125 13 58 Melee 4 | . . . . . . 4 . . . . Projectile 435 | . 31 15 . 14 78 43 58 125 13 58 AOE 18 | . . . . 16 . 1 . 1 . . Critical Strikes 22 | . . 1 . . 6 3 1 7 . 4 Part Disruptions 2 | . . . . . . . . 1 . 1 Damage Taken 6921 | . 356 220 . 632 1149 640 884 1970 199 871 Core 802 | . 86 9 . 154 108 29 95 191 28 102 Absorbed by Shields 17 | . . . . . . . . . . 17 Ignored by Resistances 31 | . . . . . . . 3 . 22 6 Regen/Repaired (Parts) 245 | . . . . . . . 245 . . . Core Remaining (%) 50 | 100 . . . . . . . . . . Volleys Fired 667 | 1 47 14 . 11 106 135 104 158 34 57 Largest 3 | 2 2 2 . 2 3 3 3 3 2 2 Hottest 121 | 40 46 46 . 46 81 89 83 115 100 121 Shots Fired 1360 | 2 94 23 . 21 266 289 286 222 65 92 Gun 1268 | 2 94 18 . 21 210 277 283 213 61 89 Cannon 55 | . . . . . 54 . . . . 1 Launcher 32 | . . 5 . . 2 12 3 9 1 . Special 5 | . . . . . . . . . 3 2 Kinetic 1070 | 2 94 18 . 21 264 272 283 116 . . Thermal 150 | . . . . . . 5 . 81 . 64 Explosive 26 | . . 5 . . 2 9 3 7 . . Electromagnetic 109 | . . . . . . 3 . 18 62 26 Robot Hit Streak 49 | 1 16 20 . 3 16 49 11 22 13 18 Robot Miss Streak 8 | . 4 2 . 3 4 8 6 5 5 6 Penetration Max 1 | . . . . . . 1 . 1 . . Secondary Targets 14 | . 1 . . . 3 2 3 3 . 2 Max Gunslinging Chain 1 | . 1 . . . 1 1 1 1 . 1 Shots Hit Robots 827 | 1 60 12 4 11 162 185 154 143 34 61 Core Hits 370 | 1 28 8 . 4 68 84 61 75 19 22 Critical Kills 3 | . 1 . . . . 1 . 1 . . Critical Parts Destroyed 5 | . . . . 1 . 4 . . . . Critical Strikes 20 | . 1 . . 1 2 5 . 7 3 1 Burn 7 | . . . . . . . . 6 . 1 Destroy 8 | . 1 . . 1 . 5 . 1 . . Blast 2 | . . . . . 2 . . . . . Corrupt 3 | . . . . . . . . . 3 . Melee Attacks 4 | . . . 4 . . . . . . . Impact . | . . . . . . . . . . . Slashing . | . . . . . . . . . . . Piercing . | . . . . . . . . . . . Sneak Attacks 3 | . . . 3 . . . . . . . Combat Hostiles . | . . . . . . . . . . . Follow-up Attacks . | . . . . . . . . . . . Damage Inflicted 16114 | 15 733 649 . 164 3054 2938 3130 3448 791 1192 Guns 12327 | 15 733 175 . 164 2032 2102 2890 2436 702 1078 Cannons 603 | . . . . . 603 . . . . . Explosions 3184 | . . 474 . . 419 836 240 1012 89 114 Melee . | . . . . . . . . . . . Ramming . | . . . . . . . . . . . Kinetic 9840 | 15 733 175 . 164 2635 2102 2890 1126 . . Thermal 2160 | . . . . . . . . 1180 45 935 Explosive 2721 | . . 474 . . 419 836 204 788 . . Electromagnetic 1393 | . . . . . . . 36 354 746 257 Impact . | . . . . . . . . . . . Slashing . | . . . . . . . . . . . Piercing . | . . . . . . . . . . . Highest Corruption 37 | . . . . . . 4 4 24 24 37 Average Corruption 10 | . . . . . . 2 4 9 24 30 Corruption Purged . | . . . . . . . . . . . Corruption Blocked . | . . . . . . . . . . . Effects 208 | . . . . . . 14 56 59 42 37 Message Errors 50 | . . . . . . 4 12 14 11 9 Matter Fused 48 | . . . . . . 1 19 13 8 7 Heat Flow Errors 22 | . . . . . . 3 6 4 5 4 Energy Discharges 16 | . . . . . . 1 7 1 4 3 Parts Rejected 1 | . . . . . . . 1 . . . Data Loss (minor) 29 | . . . . . . 2 3 14 7 3 Data Loss (major) 6 | . . . . . . 1 1 2 . 2 Misfires 13 | . . . . . . 1 2 5 4 1 Alerts 2 | . . . . . . . 1 1 . . Weapon Failures 21 | . . . . . . 1 4 5 3 8 Overload Shots . | . . . . . . . . . . . Overflow Damage 301 | . . 90 . . 58 95 58 . . . Projectiles 6 | . . . . . 6 . . . . . Explosions 295 | . . 90 . . 52 95 58 . . . Melee . | . . . . . . . . . . . Knockbacks 14 | . . . . . 14 . . . . . Impact . | . . . . . . . . . . . Kinetic 12 | . . . . . 12 . . . . . Secondary 2 | . . . . . 2 . . . . . Self-Inflicted Damage 274 | . . 69 . . 16 37 45 50 34 23 Shots 11 | . . 2 . . 1 2 2 2 1 1 Rammed . | . . . . . . . . . . . Targets Rammed . | . . . . . . . . . . . Kicked . | . . . . . . . . . . . Crushed . | . . . . . . . . . . . Highest Temperature 373 | . 24 96 . 28 306 282 373 308 193 237 Average Temperature 90 | . 8 45 . 14 84 87 111 98 67 36 Received Heat Transfer 1704 | . 171 48 . . 441 27 369 558 72 18 Effects 4 | . . . . . 2 . 2 . . . Shutdowns 1 | . . . . . 1 . . . . . Energy Bleed 1 | . . . . . . . 1 . . . Interference 2 | . . . . . 1 . 1 . . . Siege Activations . | . . . . . . . . . . . Martial Activations . | . . . . . . . . . . . Shielding Activations . | . . . . . . . . . . . Robots Disrupted . | . . . . . . . . . . . Combat Hostiles . | . . . . . . . . . . . Robots Corrupted 2 | . . . . . . . . 1 1 . Combat Hostiles 1 | . . . . . . . . . 1 . Parts Fried 10 | . . . . . . . . 3 5 2 Impact Corruptions . | . . . . . . . . . . . Robots Melted 3 | . . . . . . . . 1 . 2 Combat Hostiles 2 | . . . . . . . . . . 2 Parts Melted 10 | . . . . . . . . 3 . 7 Heat Transferred 4305 | . . . . . . . . 2416 50 1839 Parts Sabotaged . | . . . . . . . . . . . Parts Stolen . | . . . . . . . . . . . Parts Stripped . | . . . . . . . . . . . Power Chain Reactions 7 | . . . . . . 1 . 3 2 1 Alert | -11 -10 -10 -10 -9 -8 -8 -8 -8 -8 -8 ------- Run | Yrd Mat Min Exi Min Mat Gar Mat Gar Mat Gar Maximum Alert Level 4 | . . . . . 1 4 3 4 2 1 Low Security (%) 31 | 100 100 100 . 100 40 1 . . 27 32 Level 1 18 | . . . . . 59 7 . 9 45 67 Level 2 25 | . . . . . . 20 95 13 27 . Level 3 14 | . . . . . . 36 4 50 . . Level 4 9 | . . . . . . 33 . 25 . . Level 5 . | . . . . . . . . . . . High Security . | . . . . . . . . . . . Max Security . | . . . . . . . . . . . Peak Influence 1259 | . 62 150 . 35 331 1259 772 1198 583 331 Initial 613 | . . . . . 5 189 613 315 583 84 Average 443 | . 10 78 . 5 184 872 543 855 305 216 Influence Increases 5100 | 5 273 288 . 55 953 1130 954 973 212 257 Destroy 0b10 Robot/C 2625 | . 160 200 . 40 600 420 440 480 105 180 Destroy 0b10 Robot/NC 292 | 5 35 5 . 5 65 35 90 20 32 . Destroy Leader 458 | . 38 30 . 10 130 20 148 42 32 8 Allied During Kill 23 | . . 1 . . . 18 . . . 4 Trap Triggered on 0b10 18 | . . . . . . 10 . 8 . . Successful Hack 158 | . 24 . . . 15 38 47 12 22 . Disable Machine 267 | . . 15 . . 60 90 90 . 12 . Anti-Garrison Action 551 | . . . . . . 350 . 163 . 38 Destroy Structure 381 | . 1 37 . . 53 149 49 68 9 15 Partial Spotted 15 | . 15 . . . . . . . . . Lose Combat Pursuer 312 | . . . . . 30 . 90 180 . 12 Influence Decreases 4769 | 5 271 253 37 40 677 162 1728 260 1280 56 Entered New Map 1628 | . . 2 37 . 10 102 646 170 615 46 Time Decay 1976 | 5 261 231 . 20 467 . 612 . 380 . Lost Part 220 | . 10 . . 20 50 20 20 90 . 10 Lost Ally 70 | . . 20 . . . 40 . . 10 . Purge Threat 875 | . . . . . 150 . 450 . 275 . Squads Dispatched 12 | . 3 1 . . 4 . 2 . 2 . Investigation 4 | . 2 . . . 1 . 1 . . . Extermination . | . . . . . . . . . . . Reinforcement 7 | . 1 . . . 3 . 1 . 2 . Assault 1 | . . 1 . . . . . . . . Garrison . | . . . . . . . . . . . Intercept . | . . . . . . . . . . . Searches Triggered . | . . . . . . . . . . . Construction Impeded . | . . . . . . . . . . . Haulers Reinforced . | . . . . . . . . . . . Active Scanning Responses . | . . . . . . . . . . . Cargo Convoy Interrupts . | . . . . . . . . . . . Stealth | -11 -10 -10 -10 -9 -8 -8 -8 -8 -8 -8 --------- Run | Yrd Mat Min Exi Min Mat Gar Mat Gar Mat Gar Distress Signals 7 | . . . . . 1 1 3 . 2 . Communications Jammed . | . . . . . . . . . . . Distress Signals . | . . . . . . . . . . . Times Spotted 196 | . 15 10 . 3 44 28 32 34 16 14 Peak Tracking Total 8 | . 4 3 . 2 4 4 4 8 4 4 Tactical Retreats 13 | . . . . . 2 . 5 5 . 1 Traps | -11 -10 -10 -10 -9 -8 -8 -8 -8 -8 -8 ------- Run | Yrd Mat Min Exi Min Mat Gar Mat Gar Mat Gar Traps Triggered 17 | . 2 . . . 1 5 4 3 . 2 Indirectly . | . . . . . . . . . . . Trap Hack Attempts . | . . . . . . . . . . . Triggered . | . . . . . . . . . . . Disarmed . | . . . . . . . . . . . Reprogrammed . | . . . . . . . . . . . Reused 2 | . . . . . . 1 . 1 . . Traps Extracted . | . . . . . . . . . . . Installed 2 | . . . . . . 1 . 1 . . Triggered 2 | . . . . . . 1 . 1 . . Most Traps Carried 3 | . . . . . . 3 1 1 . . Machines | -11 -10 -10 -10 -9 -8 -8 -8 -8 -8 -8 ---------- Run | Yrd Mat Min Exi Min Mat Gar Mat Gar Mat Gar Machines Disabled 27 | . . 1 . . 4 10 6 4 1 1 Max in Single Turn 2 | . . 1 . . 1 2 1 1 1 1 Garrison Relay 5 | . . . . . . 2 . 2 . 1 Phase Generator 1 | . . . . . . 1 . . . . Machines Repaired . | . . . . . . . . . . . Machines Dismantled . | . . . . . . . . . . . Machines Sabotaged . | . . . . . . . . . . . Overloaded Fab Kills . | . . . . . . . . . . . Hacking | -11 -10 -10 -10 -9 -8 -8 -8 -8 -8 -8 --------- Run | Yrd Mat Min Exi Min Mat Gar Mat Gar Mat Gar Machines Accessed 44 | . 6 . 2 . 7 5 15 2 7 . Terminals 32 | . 6 . . . 4 5 10 2 5 . Fabricators . | . . . . . . . . . . . Repair Stations 2 | . . . . . . . 2 . . . Recycling Units . | . . . . . . . . . . . Scanalyzers 5 | . . . . . 2 . 2 . 1 . Garrison Access 3 | . . . . . 1 . 1 . 1 . Total Hacks 151 | . 27 . 6 . 30 10 52 2 24 . Successful 98 | . 14 . 6 . 23 3 39 1 12 . Failed 52 | . 13 . . . 6 7 13 1 12 . Catastrophic 12 | . . . . . 2 3 5 . 2 . Database Lockouts 1 | . . . . . 1 . . . . . Manual 69 | . 20 . 1 . 4 . 24 . 20 . Terminals 100 | . 27 . . . 10 10 32 2 19 . Fabricators . | . . . . . . . . . . . Repair Stations 6 | . . . . . . . 6 . . . Recycling Units . | . . . . . . . . . . . Scanalyzers 36 | . . . . . 19 . 13 . 4 . Garrison Access 3 | . . . . . 1 . 1 . 1 . Terminal Hacks 31 | . 3 . 6 . 4 3 10 1 4 . Record 6 | . . . 6 . . . . . . . Robot Analysis 4 | . 2 . . . . . . . 2 . Prototype ID Bank 1 | . . . . . . . 1 . . . Branch Access Points 1 | . . . . . 1 . . . . . Emergency Access Points 2 | . . . . . . 1 1 . . . Terminal Index 2 | . . . . . 1 . 1 . . . Unreport Threat 4 | . . . . . 1 . 3 . . . Locate Traps 2 | . . . . . 1 . 1 . . . Hauler Manifests 1 | . . . . . . . . . 1 . Registered Components 1 | . . . . . . . 1 . . . Registered Prototypes 1 | . . . . . . . 1 . . . Zone Layout 3 | . 1 . . . . . 1 . 1 . Garrison Registry 2 | . . . . . . 1 . 1 . . Security Stations 1 | . . . . . . 1 . . . . Fabricator Hacks . | . . . . . . . . . . . Repair Station Hacks 5 | . . . . . . . 5 . . . Scan Component 3 | . . . . . . . 3 . . . Repair 2 | . . . . . . . 2 . . . Recycling Unit Hacks . | . . . . . . . . . . . Scanalyzer 34 | . . . . . 17 . 13 . 4 . Insert Component 14 | . . . . . 9 . 4 . 1 . Analyze 14 | . . . . . 6 . 6 . 2 . Retrieve Study 6 | . . . . . 2 . 3 . 1 . Garrison Access Hacks 3 | . . . . . 1 . 1 . 1 . Unlock Access 3 | . . . . . 1 . 1 . 1 . Unauthorized Hacks 25 | . 11 . . . 1 . 10 . 3 . Terminals 25 | . 11 . . . 1 . 10 . 3 . Botnet 11 | . 5 . . . 1 . 4 . 1 . Operators 1 | . 1 . . . . . . . . . Skim 13 | . 5 . . . . . 6 . 2 . Fabricators . | . . . . . . . . . . . Repair Stations . | . . . . . . . . . . . Recycling Units . | . . . . . . . . . . . Scanalyzers . | . . . . . . . . . . . Garrison Access . | . . . . . . . . . . . Data Cores Recovered 3 | . 1 . . . 1 . 1 . . . Used 2 | . 1 . . . . . 1 . . . Hacking Detections 39 | . 6 . . . 6 5 14 1 7 . Full Trace Events 2 | . . . . . . 2 . . . . Feedback Events 1 | . . . . . . 1 . . . . Corruption 1 | . . . . . . 1 . . . . Feedback Blocked . | . . . . . . . . . . . Robot Schematics Acquired . | . . . . . . . . . . . Robots Built . | . . . . . . . . . . . Authchips . | . . . . . . . . . . . Time . | . . . . . . . . . . . Total Robot Build Rating . | . . . . . . . . . . . Part Schematics Acquired 11 | . . . . . 6 . 4 . 1 . Parts Built . | . . . . . . . . . . . Authchips . | . . . . . . . . . . . Time . | . . . . . . . . . . . Total Part Build Rating . | . . . . . . . . . . . Part Studies Acquired 6 | . . . . . 2 . 3 . 1 . Parts Repaired 2 | . . . . . . . 2 . . . Time 94 | . . . . . . . 94 . . . Parts Recycled . | . . . . . . . . . . . Recycled Matter . | . . . . . . . . . . . Retrieved Matter . | . . . . . . . . . . . Retrieved Components . | . . . . . . . . . . . Parts Scanalyzed 11 | . . . . . 6 . 4 . 1 . Part Schematics Acquired 11 | . . . . . 6 . 4 . 1 . Parts Damaged . | . . . . . . . . . . . Bothacking | -11 -10 -10 -10 -9 -8 -8 -8 -8 -8 -8 ------------ Run | Yrd Mat Min Exi Min Mat Gar Mat Gar Mat Gar Used RIF Installer 3 | . . . . . . 1 . 2 . . Hotswap 1 | . . . . . . . . 1 . . Threat Obfuscator 1 | . . . . . . . . 1 . . Robots Hacked 6 | . . . 3 . . . . . 1 2 Non-combat 3 | . . . 2 . . . . . 1 . Combat 3 | . . . 1 . . . . . . 2 Robot Hacks Applied 8 | . . . 3 . . . . . 3 2 parse_system 3 | . . . 3 . . . . . . . purge_threat 2 | . . . . . . . . . 2 . overwrite_iff 1 | . . . . . . . . . . 1 formatsys_low 1 | . . . . . . . . . 1 . formatsys_high 1 | . . . . . . . . . . 1 Relay Couplers Released 23 | . . . . . . 8 . 10 . 5 Machine Destruction 23 | . . . . . . 8 . 10 . 5 Attached 3 | . . . . . . . . . 1 2 Fabnet Peak Effective % . | . . . . . . . . . . . Robots Rewired . | . . . . . . . . . . . Allies Hacked . | . . . . . . . . . . . Hacks Repelled . | . . . . . . . . . . . Allies | -11 -10 -10 -10 -9 -8 -8 -8 -8 -8 -8 -------- Run | Yrd Mat Min Exi Min Mat Gar Mat Gar Mat Gar Total Allies 10 | . . 4 . 1 . 2 . . 1 2 Largest Group 4 | . . 3 3 4 . 2 . . 1 2 Highest-Rated Group 71 | . . 40 40 71 . 45 . . 10 45 Highest-Rated Ally 31 | . . 31 16 31 . 25 . . 10 29 Total Orders . | . . . . . . . . . . . Ally Attacks 34 | . . 4 . 15 . 10 . . . 5 Total Damage 630 | . . 84 . 196 . 280 . . . 70 Kills 7 | . . 1 . 2 . 3 . . . 1 Allies Corrupted . | . . . . . . . . . . . Allies Melted . | . . . . . . . . . . . Intel | -11 -10 -10 -10 -9 -8 -8 -8 -8 -8 -8 ------- Run | Yrd Mat Min Exi Min Mat Gar Mat Gar Mat Gar Active Infowar (turns) 2663 | 20 1341 543 473 173 113 . . . . . Seismic 2663 | 20 1341 543 473 173 113 . . . . . Robot Analysis Total 4 | . 2 . . . . . . . 2 . Derelict Logs Recovered 1 | . . 1 . . . . . . . . Drone Launches . | . . . . . . . . . . . Drone Recoveries . | . . . . . . . . . . . Exploration | -11 -10 -10 -10 -9 -8 -8 -8 -8 -8 -8 ------------- Run | Yrd Mat Min Exi Min Mat Gar Mat Gar Mat Gar Turns Passed 11181 | 69 1341 581 765 252 1459 1492 2000 1753 885 584 Spaces Moved 6548 | 59 815 427 677 170 869 854 1044 943 423 267 Core 3 | 3 . . . . . . . . . . Treads . | . . . . . . . . . . . Legs . | . . . . . . . . . . . Wheels 6448 | 56 815 427 677 170 869 854 1044 846 423 267 Hover 97 | . . . . . . . . 97 . . Flight . | . . . . . . . . . . . Fastest Speed 50 | 50 90 120 105 120 85 115 115 66 115 115 Average Speed 116 | 88 104 120 108 120 106 115 122 127 129 122 Slowest Speed 240 | 100 120 120 120 120 120 145 160 240 130 130 Overloaded Moves . | . . . . . . . . . . . Propulsion Burnouts . | . . . . . . . . . . . Robots Hopped . | . . . . . . . . . . . Potential Cave-ins . | . . . . . . . . . . . Cave-ins Triggered . | . . . . . . . . . . . Exploration Rate (%) 63 | 4 98 97 89 53 54 94 85 70 43 16 Regions Visited 10 Branch Regions 3 Pre-discovered Areas 5 | . 2 . 1 . . . 2 . . . Known Exits Taken 3 | . . . . . 1 . 1 . 1 . Unknown Exits Taken 5 | 1 1 1 1 1 . . . . . . Scrap Searched 2 | . . 1 . 1 . . . . . . Spaces Dug 25 | . . . . . 8 . 2 15 . . Terrain Destroyed 330 | . . 61 . . 53 127 44 29 8 8 Melee . | . . . . . . . . . . . Projectile 17 | . . . . . 3 3 10 1 . . AOE 313 | . . 61 . . 50 124 34 28 8 8 Terrain Rammed . | . . . . . . . . . . . Walls Destroyed . | . . . . . . . . . . . Machines Disabled . | . . . . . . . . . . . Actions | -11 -10 -10 -10 -9 -8 -8 -8 -8 -8 -8 --------- Run | Yrd Mat Min Exi Min Mat Gar Mat Gar Mat Gar Total 9070 | 70 1221 471 708 200 1220 1178 1582 1297 696 427 Wait 1356 | 1 311 21 7 12 162 92 392 75 225 58 Move 6541 | 58 814 426 676 169 869 853 1044 942 423 267 Hop . | . . . . . . . . . . . Pick Up 119 | 3 24 . 1 3 25 20 7 31 2 3 Fast Attach 65 | 7 4 . 5 . 16 4 13 10 1 5 Attach 32 | . 3 . 1 4 6 4 1 10 . 3 Detach 6 | . . . 1 . 2 . . 2 . 1 Swap 78 | . 4 10 3 1 11 15 6 11 8 9 Drop 129 | . 14 . 10 . 23 22 15 33 3 9 Fire 667 | 1 47 14 . 11 106 135 104 158 34 57 Melee 4 | . . . 4 . . . . . . . Ram . | . . . . . . . . . . . Kick . | . . . . . . . . . . . Crush . | . . . . . . . . . . . Escape Stasis 71 | . . . . . . 32 . 24 . 15 Rewire . | . . . . . . . . . . . Trap 2 | . . . . . . 1 . 1 . . Miscellaneous . | . . . . . . . . . . . Route ------- -11/Scrapyard -10/Materials (discovered 5 exits: *Mat x3 / [*Min] / *Sub) -10/Mines (discovered 4 exits: *Mat x2 / *Exi / Sub) -10/Exiles -9/Mines (discovered 2 exits: *Mat x2) -8/Materials (discovered 4 exits: *Fac x3 / Gar) -8/Garrison (discovered 3 exits: *Mat x3) -8/Materials (discovered 4 exits: *Fac x3 / Gar) -8/Garrison (discovered 4 exits: *Fac x3 / *Mat) -8/Materials -8/Garrison History --------- Turn | Location | Event 6 | -11/Scrapyard | Discovered new exit (range 15) 70 | -11/Scrapyard | Entered Materials 271 | -10/Materials | Discovered new exit (range 6) 302 | -10/Materials | Build established: Mutant 382 | -10/Materials | Discovered new exit (range 7) 521 | -10/Materials | Discovered new exit (range 3) 648 | -10/Materials | Discovered new exit (range 11) 843 | -10/Materials | Identified exit to Materials 843 | -10/Materials | Learned location of 1 exit from Materials 889 | -10/Materials | Learned location of 3 exits from Materials 927 | -10/Materials | Learned location of 1 exit from Storage 978 | -10/Materials | Learned location of Recycling (-7) 1015 | -10/Materials | Learned location of 2 exits from Mines 1050 | -10/Materials | Learned Storage security intel 1411 | -10/Materials | Entered Mines 1412 | -10/Mines | Identified exit to Subcaves 1414 | -10/Mines | Met a Derelict testing a Signal Generator 1631 | -10/Mines | Discovered exit to Materials (range 6) 1800 | -10/Mines | Assisted by bots powering up and referring to "LRC-V3" 1974 | -10/Mines | Deemed a non-threat by the Exiles lab entrance 1975 | -10/Mines | Discovered new exit (range 5) 1992 | -10/Mines | Entered Exiles 1992 | -10/Exiles | Accompanied by 3 allies 2020 | -10/Exiles | Met 8R-AWN 2063 | -10/Exiles | Met EX-HEX 2095 | -10/Exiles | Met EX-BIN 2220 | -10/Exiles | Met EX-DEC 2225 | -10/Exiles | Learned location of Zion (-6) 2272 | -10/Exiles | Aligned with FarCom system 2273 | -10/Exiles | Given EX-Vault access code 2297 | -10/Exiles | Opened EX-Vault 2305 | -10/Exiles | Found Prototype Energy Cannon 2305 | -10/Exiles | Identified YOLO Cannon 2310 | -10/Exiles | Found Prototype Energy Cannon 2310 | -10/Exiles | Identified Latent Energy Streamer 2315 | -10/Exiles | Found Prototype Storage 2315 | -10/Exiles | Identified Superbattery 2337 | -10/Exiles | Warned to stay clear of 0b10 Research branches 2447 | -10/Exiles | Visited The Gauntlet 2739 | -10/Exiles | Discovered new exit (range 10) 2757 | -10/Exiles | Left Exiles lab with Latent Energy Streamer 2757 | -10/Exiles | Entered Mines 2757 | -9/Mines | Accompanied by 3 allies 2760 | -9/Mines | Received a Mining Laser from a helpful Derelict 2821 | -9/Mines | Found a Scrap Suit stashed away for nefarious purposes 2827 | -9/Mines | Assembled infested the area 2832 | -9/Mines | Assisted by a Guerilla fighting off Assembled 2872 | -9/Mines | Discovered new exit (range 15) 2937 | -9/Mines | Core integrity fell below 50% 2948 | -9/Mines | Core integrity fell below 20% 2956 | -9/Mines | Lost 3 allies 2984 | -9/Mines | Lost 4 parts (2u2w) 3003 | -9/Mines | Discovered new exit (range 6) 3009 | -9/Mines | Entered Materials 3009 | -8/Materials | Evolved 4 slots: Propulsion x1, Utility x2, Weapon x1 3010 | -8/Materials | Identified exit to Factory 3497 | -8/Materials | Destroyed 7 combat bots 3635 | -8/Materials | Build established: Scavenger-Tank 4075 | -8/Materials | Central database locked down 4468 | -8/Materials | Identified exit to Garrison 4468 | -8/Materials | Entered Garrison 4536 | -8/Garrison | Rescued a captive Derelict 4540 | -8/Garrison | Rescued a captive Derelict 4574 | -8/Garrison | Triggered checkpoint 4706 | -8/Garrison | Triggered checkpoint 4799 | -8/Garrison | Discovered new exit (range 10) 4852 | -8/Garrison | Garrison Relay disabled 4963 | -8/Garrison | Triggered checkpoint 5302 | -8/Garrison | Garrison Relay disabled 5317 | -8/Garrison | Discovered new exit (range 9) 5323 | -8/Garrison | Discovered new exit (range 57) 5323 | -8/Garrison | Discovered new exit (range 46) 5323 | -8/Garrison | Discovered new exit (range 8) 5350 | -8/Garrison | Triggered checkpoint 5374 | -8/Garrison | Installed Relay Interface Framework 5392 | -8/Garrison | Learned Materials security intel 5411 | -8/Garrison | Phase Generator disabled 5960 | -8/Garrison | Entered Materials 6565 | -8/Materials | Discovered exit to Factory (range 17) 6619 | -8/Materials | Learned Storage emergency access door positions 6663 | -8/Materials | Learned location of Extension (-5) 6699 | -8/Materials | Learned Factory emergency access door positions 6725 | -8/Materials | Learned Storage trap positions 6739 | -8/Materials | Learned Storage trap positions 6755 | -8/Materials | Learned location of 1 exit from Extension 6775 | -8/Materials | Learned location of 1 exit from Storage 7712 | -8/Materials | Repaired Arm. Huge Wheel 7763 | -8/Materials | Repaired Hvy. Machine Gun 7960 | -8/Materials | Identified exit to Garrison 7960 | -8/Materials | Entered Garrison 8006 | -8/Garrison | Triggered checkpoint 8040 | -8/Garrison | Garrison Relay disabled 8127 | -8/Garrison | Discovered exit to Factory (range 59) 8127 | -8/Garrison | Discovered exit to Factory (range 64) 8127 | -8/Garrison | Discovered exit to Factory (range 39) 8127 | -8/Garrison | Discovered new exit (range 56) 8231 | -8/Garrison | Expanded RIF knowledge: Threat Obfuscation 8309 | -8/Garrison | Triggered checkpoint 8314 | -8/Garrison | Core integrity fell below 50% 8516 | -8/Garrison | Expanded RIF knowledge: Hotswap 8572 | -8/Garrison | Triggered checkpoint 8698 | -8/Garrison | Triggered checkpoint 8786 | -8/Garrison | Garrison Relay disabled 8792 | -8/Garrison | Triggered checkpoint 8984 | -8/Garrison | System corruption reached 10% 9604 | -8/Garrison | Build established: Scavenger-Skirmisher 9679 | -8/Garrison | Triggered checkpoint 9713 | -8/Garrison | Entered Materials 10072 | -8/Materials | Build established: Scavenger-Tank 10115 | -8/Materials | Core integrity fell below 20% 10598 | -8/Materials | Identified exit to Garrison 10598 | -8/Materials | Entered Garrison 10666 | -8/Garrison | Triggered checkpoint 10711 | -8/Garrison | Garrison Relay disabled 10890 | -8/Garrison | System corruption reached 30% 11182 | -8/Garrison | Destroyed by P-60 Hacker with Shock Rifle Last Messages --------------- Momentum Engine. 11118_ Adv. Heat Sink fried. 11118_ G-50 Soldier destroyed. 11118_ Trooper 3a destroyed. 11122_ Acquired 55 matter. 11123_ Dropped Shock Rifle+. 11127_ Acquired Particle Gun. 11134_ System corrupted: Substantial component data lost. 11134_ Acquired 20 matter. 11146_ Discarded Relay Coupler [Grunt]. 11152_ System corrupted: Substantial component data lost. 11167_ 8QSDK0EFMEOY|A0XNDTGZE A|NS=U< 11169_ System corrupted: Particle Gun failed to cycle. 11180_ P-60 Hacker heat damages Shock Rifle. 11181_ P-60 Hacker critical meltdown. 11181_ Gravmag System melted. 11181_ Mic. Nuclear Core melted. Map ----- +----------------------------------------------------+ | ????????##!! ######+#### #???#*#?????????????????? | | ????????#"" ""#????????#%#####%#?????????????????? | | ????????#######????????+==* =%#?????????????????? | | ???????????????????????#!#######?????????????????? | | ???????????????????????#=#???????????????????????? | | ???????????????????????# #???????????????????????? | | ???????????????????????# #???????????????????????? | | ???????????????????????# #???????????????????????? | | ???????????????????????# #???????????????????????? | | ???????????????????????# #???????????????????????? | | ???????????????????????# #???????????????????????? | | ???????????????????????# #???#####???????????????? | | ???????????????????????# #???# #???????????????? | | ?????????????????????### ##### #???????????????? | | ?????????????????????# #???????????????? | | ?????????????????????# #???????????????? | | ?????????????????????# ##########???????????????? | | ?????????????????????# #????????????????????????? | | ??????????????????#### #????????????????????????? | | ??????"""#????????# #" #????????????????????????? | | ???? ######"[=!#????????????????????????? | | ???? =%= #????????????????????????? | | ???? [%=#????????????????????????? | | ????# ## #####"""""########?????????????????? | | ??????????#???????##### #[[[[[[#?????????????????? | | ??????????????????????# p@ #?????????????????? | | ??????????????????????##########?????????????????? | | ???????????????Y?????????????????????????????????? | | ?????????????????????????????????????????????????? | | ?????????????????????????????????????????????????? | | ?????????????????????????????????????????????????? | | ?????????????????????????????????????????????????? | | ?????????????????????????????????????????????????? | | ?????????????????????????????????????????????????? | | ?????????????????????????????????????????????????? | | ?????????????????????????????????????????????????? | | ?????????????????????????????????????????????????? | | ?????????????????????????????????????????????????? | | ?????????????????????????????????????????????????? | | ?????????????????????????????????????????????????? | | ?????????????????????????????????????????????????? | | ?????????????????????????????????????????????????? | | ?????????????????????????????????????????????????? | | ?????????????????????????????????????????????????? | | ?????????????????????????????????????????????????? | | ?????????????????????????????????????????????????? | | ?????????????????????????????????????????????????? | | ?????????????????????????????????????????????????? | | ?????????????????????????????????????????????????? | | ?????????????????????????????????????????????????? | +----------------------------------------------------+ Best States ------------- Heat Dissipation 50 Coolant Potential 50 Energy Generation 16 Energy Capacity 290 Matter Stores 300 Matter Capacity 300 Sight Range 16 Terrain Scan Density 10 Armor Coverage 450 Resistance: KI 30 Resistance: EM 15 Evasion (%) 51 Offensive Hacking 10 Relay Coupler Types 2 Relay Coupler Value 54 Item Schematics ----------------- Adv. EMP Blaster | -8/Materials | Scanalyzed Cmb. Airjet | -8/Materials | Scanalyzed Datajack | -8/Materials | Scanalyzed Imp. Grenade Launcher | -8/Materials | Scanalyzed ECM Suite | -8/Materials | Scanalyzed Hrd. Light Armor Plating | -8/Materials | Scanalyzed Hacking Suite | -8/Materials | Scanalyzed Remote Datajack | -8/Materials | Scanalyzed System Shield | -8/Materials | Scanalyzed Energy Well | -8/Materials | Scanalyzed Med. Storage Unit | -8/Materials | Scanalyzed Robot Schematics ------------------ None Fabricated ------------ Nothing Repaired ---------- Arm. Huge Wheel | 47% | -8/Materials Hvy. Machine Gun | 24% | -8/Materials Studied --------- Wheel | -8/Materials | Hacked Com. Wheel | -8/Materials | Hacked Hvy. Assault Rifle | -8/Materials | Hacked Imp. Grenade Launcher | -8/Materials | Hacked Deuterium Engine | -8/Materials | Hacked Shock Rifle | -8/Materials | Hacked Alien Tech Used ----------------- None Achievements -------------- None Challenges ------------ None Game ------ Seed AlloyChainFlakker Manual? 0 Play Time 01:47:19 Cumulative 480.3 hours Start 2026.01.24 @ 21:14:46 End 2026.01.24 @ 23:20:45 Sessions 1 Manual Loads 0 Difficulty Rogue Special Mode None Game No. 166 Rogue 166 Adventurer 0 Explorer 0 Win Type - Total 14 Types 6/0/4/1/0/0/0/1/0/2 Lore% 90 Gallery% 85 Achievement% 73 Wizard Run 0 Options --------- Layout 1 ASCII 0 Keyboard 0 Movement Mouse Keybinds 0 Fullscreen 2 Font 32/SmallcapsGlow Map View 50x35 Zoom Use 0% Tactical HUD 1 Map Filters NONE Filters NONE Steam 1 RUN: 5d4c7dbd-945e-453e-aa9a-b87a65bae40a